Workbook

Sheet Tulude ja kulude aruanne
B1: Tulude ja kulude aruanne
D3: EELMINE PERIOOD | E3: EELARVE | F3: PRAEGUNE PERIOOD | H3: PRAEGUNE PERIOOD TULEMIPROTSENDINA | I3: MUUTUS (%) VÕRRELDES EELMISE PERIOODIGA | J3: MUUTUS (%) VÕRRELDES EELARVEGA
B4: Müügitulu
B6: Toode/teenus 1 | D6: 40 | E6: 50 | F6: 45 | H6: =IFERROR(Müügitulud[[#This Row],[praegune periood ]]/SUBTOTAL(109,Müügitulud[[praegune periood ]]),0) -> 100.0% | I6: =IFERROR(Müügitulud[[#This Row],[praegune periood ]]/Müügitulud[[#This Row],[eelmine periood]]-1,0) -> 12.5% | J6: =IFERROR(Müügitulud[[#This Row],[praegune periood ]]/Müügitulud[[#This Row],[Eelarve]]-1,0) -> -10.0%
B7: Toode/teenus 2 | H7: =IFERROR(Müügitulud[[#This Row],[praegune periood ]]/SUBTOTAL(109,Müügitulud[[praegune periood ]]),0) -> 0 | I7: =IFERROR(Müügitulud[[#This Row],[praegune periood ]]/Müügitulud[[#This Row],[eelmine periood]]-1,0) -> 0 | J7: =IFERROR(Müügitulud[[#This Row],[praegune periood ]]/Müügitulud[[#This Row],[Eelarve]]-1,0) -> 0
B8: Toode/teenus 3 | H8: =IFERROR(Müügitulud[[#This Row],[praegune periood ]]/SUBTOTAL(109,Müügitulud[[praegune periood ]]),0) -> 0 | I8: =IFERROR(Müügitulud[[#This Row],[praegune periood ]]/Müügitulud[[#This Row],[eelmine periood]]-1,0) -> 0 | J8: =IFERROR(Müügitulud[[#This Row],[praegune periood ]]/Müügitulud[[#This Row],[Eelarve]]-1,0) -> 0
B9: Toode/teenus 4 | H9: =IFERROR(Müügitulud[[#This Row],[praegune periood ]]/SUBTOTAL(109,Müügitulud[[praegune periood ]]),0) -> 0 | I9: =IFERROR(Müügitulud[[#This Row],[praegune periood ]]/Müügitulud[[#This Row],[eelmine periood]]-1,0) -> 0 | J9: =IFERROR(Müügitulud[[#This Row],[praegune periood ]]/Müügitulud[[#This Row],[Eelarve]]-1,0) -> 0
B10: Kokku | D10: =SUBTOTAL(109,Müügitulud[eelmine periood]) -> 40 | E10: =SUBTOTAL(109,Müügitulud[Eelarve]) -> 50 | F10: =SUBTOTAL(109,Müügitulud[[praegune periood ]]) -> 45 | H10: =IFERROR(Müügitulud[[#Totals],[praegune periood ]]/Müügitulud[[#Totals],[praegune periood ]],0) -> 100.0% | I10: =IFERROR(Müügitulud[[#Totals],[praegune periood ]]/Müügitulud[[#Totals],[eelmine periood]]-1,0) -> 12.5% | J10: =IFERROR(Müügitulud[[#Totals],[praegune periood ]]/Müügitulud[[#Totals],[Eelarve]]-1,0) -> -10.0%
B12: Müügikulu
B14: Toode/teenus 1 | E14: 2 | F14: 3 | H14: =IFERROR(Müügikulu[[#This Row],[praegune periood ]]/SUBTOTAL(109,Müügitulud[[praegune periood ]]),0) -> 6.7% | I14: =IFERROR(Müügikulu[[#This Row],[praegune periood ]]/Müügikulu[[#This Row],[eelmine periood]]-1,0) -> 0 | J14: =IFERROR(Müügikulu[[#This Row],[praegune periood ]]/Müügikulu[[#This Row],[Eelarve]]-1,0) -> 50.0%
B15: Toode/teenus 2 | E15: 5 | F15: 3 | H15: =IFERROR(Müügikulu[[#This Row],[praegune periood ]]/SUBTOTAL(109,Müügitulud[[praegune periood ]]),0) -> 6.7% | I15: =IFERROR(Müügikulu[[#This Row],[praegune periood ]]/Müügikulu[[#This Row],[eelmine periood]]-1,0) -> 0 | J15: =IFERROR(Müügikulu[[#This Row],[praegune periood ]]/Müügikulu[[#This Row],[Eelarve]]-1,0) -> -40.0%
B16: Toode/teenus 3 | F16: 1 | H16: =IFERROR(Müügikulu[[#This Row],[praegune periood ]]/SUBTOTAL(109,Müügitulud[[praegune periood ]]),0) -> 2.2% | I16: =IFERROR(Müügikulu[[#This Row],[praegune periood ]]/Müügikulu[[#This Row],[eelmine periood]]-1,0) -> 0 | J16: =IFERROR(Müügikulu[[#This Row],[praegune periood ]]/Müügikulu[[#This Row],[Eelarve]]-1,0) -> 0
B17: Toode/teenus 4 | H17: =IFERROR(Müügikulu[[#This Row],[praegune periood ]]/SUBTOTAL(109,Müügitulud[[praegune periood ]]),0) -> 0 | I17: =IFERROR(Müügikulu[[#This Row],[praegune periood ]]/Müügikulu[[#This Row],[eelmine periood]]-1,0) -> 0 | J17: =IFERROR(Müügikulu[[#This Row],[praegune periood ]]/Müügikulu[[#This Row],[Eelarve]]-1,0) -> 0
B18: Kokku | D18: =SUBTOTAL(109,Müügikulu[eelmine periood]) -> 0 | E18: =SUBTOTAL(109,Müügikulu[Eelarve]) -> 7 | F18: =SUBTOTAL(109,Müügikulu[[praegune periood ]]) -> 7 | H18: =IFERROR(Müügikulu[[#Totals],[praegune periood ]]/SUBTOTAL(109,Müügitulud[[praegune periood ]]),0) -> 15.6% | I18: =IFERROR(Müügikulu[[#Totals],[praegune periood ]]/Müügikulu[[#Totals],[eelmine periood]]-1,0) -> 0 | J18: =IFERROR(Müügikulu[[#Totals],[praegune periood ]]/Müügikulu[[#Totals],[Eelarve]]-1,0) -> 0
B20: Brutokasum | D20: =SUM(Müügitulud[eelmine periood])-SUM(Müügikulu[eelmine periood]) -> 40 | E20: =SUM(Müügitulud[Eelarve])-SUM(Müügikulu[Eelarve]) -> 43 | F20: =SUM(Müügitulud[[praegune periood ]])-SUM(Müügikulu[[praegune periood ]]) -> 38 | H20: =IFERROR(F20/SUBTOTAL(109,Müügitulud[[praegune periood ]]),0) -> 84.4% | I20: =IFERROR(F20/D20-1,0) -> -5.0% | J20: =IFERROR(F20/E20-1,0) -> -11.6%
B22: Ärikulud: müük ja turundus
B24: Reklaam | E24: 22 | F24: 19 | H24: =IFERROR(MüükJaTurundus[[#This Row],[praegune periood ]]/SUBTOTAL(109,Müügitulud[[praegune periood ]]),0) -> 42.2% | I24: =IFERROR(MüükJaTurundus[[#This Row],[praegune periood ]]/MüükJaTurundus[[#This Row],[eelmine periood]]-1,0) -> 0 | J24: =IFERROR(MüükJaTurundus[[#This Row],[praegune periood ]]/MüükJaTurundus[[#This Row],[Eelarve]]-1,0) -> -13.6%
B25: Otseturundus | H25: =IFERROR(MüükJaTurundus[[#This Row],[praegune periood ]]/SUBTOTAL(109,Müügitulud[[praegune periood ]]),0) -> 0 | I25: =IFERROR(MüükJaTurundus[[#This Row],[praegune periood ]]/MüükJaTurundus[[#This Row],[eelmine periood]]-1,0) -> 0 | J25: =IFERROR(MüükJaTurundus[[#This Row],[praegune periood ]]/MüükJaTurundus[[#This Row],[Eelarve]]-1,0) -> 0
B26: Muud kulud (täpsustada) | H26: =IFERROR(MüükJaTurundus[[#This Row],[praegune periood ]]/SUBTOTAL(109,Müügitulud[[praegune periood ]]),0) -> 0 | I26: =IFERROR(MüükJaTurundus[[#This Row],[praegune periood ]]/MüükJaTurundus[[#This Row],[eelmine periood]]-1,0) -> 0 | J26: =IFERROR(MüükJaTurundus[[#This Row],[praegune periood ]]/MüükJaTurundus[[#This Row],[Eelarve]]-1,0) -> 0
B27: Kokku | D27: =SUBTOTAL(109,MüükJaTurundus[eelmine periood]) -> 0 | E27: =SUBTOTAL(109,MüükJaTurundus[Eelarve]) -> 22 | F27: =SUBTOTAL(109,MüükJaTurundus[[praegune periood ]]) -> 19 | H27: =IFERROR(MüükJaTurundus[[#Totals],[praegune periood ]]/SUBTOTAL(109,Müügitulud[[praegune periood ]]),0) -> 42.2% | I27: =IFERROR(MüükJaTurundus[[#Totals],[praegune periood ]]/MüükJaTurundus[[#Totals],[eelmine periood]]-1,0) -> 0 | J27: =IFERROR(MüükJaTurundus[[#Totals],[praegune periood ]]/MüükJaTurundus[[#Totals],[Eelarve]]-1,0) -> -13.6%
B29: Ärikulud: üldhalduskulu
B31: Palgakulu | E31: 56 | F31: 51 | H31: =IFERROR(Üldhalduskulu[[#This Row],[praegune periood ]]/SUBTOTAL(109,Müügitulud[[praegune periood ]]),0) -> 113.3% | I31: =IFERROR(Üldhalduskulu[[#This Row],[praegune periood ]]/Üldhalduskulu[[#This Row],[eelmine periood]]-1,0) -> 0 | J31: =IFERROR(Üldhalduskulu[[#This Row],[praegune periood ]]/Üldhalduskulu[[#This Row],[Eelarve]]-1,0) -> -8.9%
B32: Välisteenused | H32: =IFERROR(Üldhalduskulu[[#This Row],[praegune periood ]]/SUBTOTAL(109,Müügitulud[[praegune periood ]]),0) -> 0 | I32: =IFERROR(Üldhalduskulu[[#This Row],[praegune periood ]]/Üldhalduskulu[[#This Row],[eelmine periood]]-1,0) -> 0 | J32: =IFERROR(Üldhalduskulu[[#This Row],[praegune periood ]]/Üldhalduskulu[[#This Row],[Eelarve]]-1,0) -> 0
B33: Tarvikud | H33: =IFERROR(Üldhalduskulu[[#This Row],[praegune periood ]]/SUBTOTAL(109,Müügitulud[[praegune periood ]]),0) -> 0 | I33: =IFERROR(Üldhalduskulu[[#This Row],[praegune periood ]]/Üldhalduskulu[[#This Row],[eelmine periood]]-1,0) -> 0 | J33: =IFERROR(Üldhalduskulu[[#This Row],[praegune periood ]]/Üldhalduskulu[[#This Row],[Eelarve]]-1,0) -> 0
B34: Söök ja meelelahutus | H34: =IFERROR(Üldhalduskulu[[#This Row],[praegune periood ]]/SUBTOTAL(109,Müügitulud[[praegune periood ]]),0) -> 0 | I34: =IFERROR(Üldhalduskulu[[#This Row],[praegune periood ]]/Üldhalduskulu[[#This Row],[eelmine periood]]-1,0) -> 0 | J34: =IFERROR(Üldhalduskulu[[#This Row],[praegune periood ]]/Üldhalduskulu[[#This Row],[Eelarve]]-1,0) -> 0
B35: Üür | H35: =IFERROR(Üldhalduskulu[[#This Row],[praegune periood ]]/SUBTOTAL(109,Müügitulud[[praegune periood ]]),0) -> 0 | I35: =IFERROR(Üldhalduskulu[[#This Row],[praegune periood ]]/Üldhalduskulu[[#This Row],[eelmine periood]]-1,0) -> 0 | J35: =IFERROR(Üldhalduskulu[[#This Row],[praegune periood ]]/Üldhalduskulu[[#This Row],[Eelarve]]-1,0) -> 0
B36: Telefon | H36: =IFERROR(Üldhalduskulu[[#This Row],[praegune periood ]]/SUBTOTAL(109,Müügitulud[[praegune periood ]]),0) -> 0 | I36: =IFERROR(Üldhalduskulu[[#This Row],[praegune periood ]]/Üldhalduskulu[[#This Row],[eelmine periood]]-1,0) -> 0 | J36: =IFERROR(Üldhalduskulu[[#This Row],[praegune periood ]]/Üldhalduskulu[[#This Row],[Eelarve]]-1,0) -> 0
B37: Kommunaalteenused | H37: =IFERROR(Üldhalduskulu[[#This Row],[praegune periood ]]/SUBTOTAL(109,Müügitulud[[praegune periood ]]),0) -> 0 | I37: =IFERROR(Üldhalduskulu[[#This Row],[praegune periood ]]/Üldhalduskulu[[#This Row],[eelmine periood]]-1,0) -> 0 | J37: =IFERROR(Üldhalduskulu[[#This Row],[praegune periood ]]/Üldhalduskulu[[#This Row],[Eelarve]]-1,0) -> 0
B38: Amortisatsioon | H38: =IFERROR(Üldhalduskulu[[#This Row],[praegune periood ]]/SUBTOTAL(109,Müügitulud[[praegune periood ]]),0) -> 0 | I38: =IFERROR(Üldhalduskulu[[#This Row],[praegune periood ]]/Üldhalduskulu[[#This Row],[eelmine periood]]-1,0) -> 0 | J38: =IFERROR(Üldhalduskulu[[#This Row],[praegune periood ]]/Üldhalduskulu[[#This Row],[Eelarve]]-1,0) -> 0
B39: Kindlustus | H39: =IFERROR(Üldhalduskulu[[#This Row],[praegune periood ]]/SUBTOTAL(109,Müügitulud[[praegune periood ]]),0) -> 0 | I39: =IFERROR(Üldhalduskulu[[#This Row],[praegune periood ]]/Üldhalduskulu[[#This Row],[eelmine periood]]-1,0) -> 0 | J39: =IFERROR(Üldhalduskulu[[#This Row],[praegune periood ]]/Üldhalduskulu[[#This Row],[Eelarve]]-1,0) -> 0
B40: Remont ja hooldus | H40: =IFERROR(Üldhalduskulu[[#This Row],[praegune periood ]]/SUBTOTAL(109,Müügitulud[[praegune periood ]]),0) -> 0 | I40: =IFERROR(Üldhalduskulu[[#This Row],[praegune periood ]]/Üldhalduskulu[[#This Row],[eelmine periood]]-1,0) -> 0 | J40: =IFERROR(Üldhalduskulu[[#This Row],[praegune periood ]]/Üldhalduskulu[[#This Row],[Eelarve]]-1,0) -> 0
B41: Muud kulud (täpsustada) | H41: =IFERROR(Üldhalduskulu[[#This Row],[praegune periood ]]/SUBTOTAL(109,Müügitulud[[praegune periood ]]),0) -> 0 | I41: =IFERROR(Üldhalduskulu[[#This Row],[praegune periood ]]/Üldhalduskulu[[#This Row],[eelmine periood]]-1,0) -> 0 | J41: =IFERROR(Üldhalduskulu[[#This Row],[praegune periood ]]/Üldhalduskulu[[#This Row],[Eelarve]]-1,0) -> 0
B42: Kokku | D42: =SUBTOTAL(109,Üldhalduskulu[eelmine periood]) -> 0 | E42: =SUBTOTAL(109,Üldhalduskulu[Eelarve]) -> 56 | F42: =SUBTOTAL(109,Üldhalduskulu[[praegune periood ]]) -> 51 | H42: =IFERROR(Üldhalduskulu[[#Totals],[praegune periood ]]/SUBTOTAL(109,Müügitulud[[praegune periood ]]),0) -> 113.3% | I42: =IFERROR(Üldhalduskulu[[#Totals],[praegune periood ]]/Üldhalduskulu[[#Totals],[eelmine periood]]-1,0) -> 0 | J42: =IFERROR(Üldhalduskulu[[#Totals],[praegune periood ]]/Üldhalduskulu[[#Totals],[Eelarve]]-1,0) -> -8.9%
B44: Ärikulud: muu
B46: Muud ärikulud 1 | E46: 10 | H46: =IFERROR(MuudeÄrikuludeKategooria[[#This Row],[praegune periood ]]/SUBTOTAL(109,Müügitulud[[praegune periood ]]),0) -> 0 | I46: =IFERROR(MuudeÄrikuludeKategooria[[#This Row],[praegune periood ]]/MuudeÄrikuludeKategooria[[#This Row],[eelmine periood]]-1,0) -> 0 | J46: =IFERROR(MuudeÄrikuludeKategooria[[#This Row],[praegune periood ]]/MuudeÄrikuludeKategooria[[#This Row],[Eelarve]]-1,0) -> -100.0%
B47: Muud ärikulud 2 | H47: =IFERROR(MuudeÄrikuludeKategooria[[#This Row],[praegune periood ]]/SUBTOTAL(109,Müügitulud[[praegune periood ]]),0) -> 0 | I47: =IFERROR(MuudeÄrikuludeKategooria[[#This Row],[praegune periood ]]/MuudeÄrikuludeKategooria[[#This Row],[eelmine periood]]-1,0) -> 0 | J47: =IFERROR(MuudeÄrikuludeKategooria[[#This Row],[praegune periood ]]/MuudeÄrikuludeKategooria[[#This Row],[Eelarve]]-1,0) -> 0
B48: Kokku | D48: =SUBTOTAL(109,MuudeÄrikuludeKategooria[eelmine periood]) -> 0 | E48: =SUBTOTAL(109,MuudeÄrikuludeKategooria[Eelarve]) -> 10 | F48: =SUBTOTAL(109,MuudeÄrikuludeKategooria[[praegune periood ]]) -> 0 | H48: =IFERROR(MuudeÄrikuludeKategooria[[#Totals],[praegune periood ]]/SUBTOTAL(109,Müügitulud[[praegune periood ]]),0) -> 0 | I48: =IFERROR(MuudeÄrikuludeKategooria[[#Totals],[praegune periood ]]/MuudeÄrikuludeKategooria[[#Totals],[eelmine periood]]-1,0) -> 0 | J48: =IFERROR(MuudeÄrikuludeKategooria[[#Totals],[praegune periood ]]/MuudeÄrikuludeKategooria[[#Totals],[Eelarve]]-1,0) -> -100.0%
B50: Ärikulud kokku | D50: =SUM(MüükJaTurundus[eelmine periood],Üldhalduskulu[eelmine periood],MuudeÄrikuludeKategooria[eelmine periood]) -> 0 | E50: =SUM(MüükJaTurundus[Eelarve],Üldhalduskulu[Eelarve],MuudeÄrikuludeKategooria[Eelarve]) -> 88 | F50: =SUM(MüükJaTurundus[[praegune periood ]],Üldhalduskulu[[praegune periood ]],MuudeÄrikuludeKategooria[[praegune periood ]]) -> 70 | H50: =IFERROR(F50/SUBTOTAL(109,Müügitulud[[praegune periood ]]),0) -> 155.6% | I50: =IFERROR(F50/D50-1,0) -> 0 | J50: =IFERROR(F50/E50-1,0) -> -20.5%
B52: Äritulud | D52: =D20-D50 -> 40 | E52: =E20-E50 -> -45 | F52: =F20-F50 -> -32 | H52: =IFERROR(F52/SUBTOTAL(109,Müügitulud[[praegune periood ]]),0) -> -71.1% | I52: =IFERROR(IF(D52=F52,0,IF(F52>D52,ABS((F52/D52)-1),IF(AND(F52<D52,D52<0),-((F52/D52)-1),(F52/D52)-1))),0) -> -180.0% | J52: =IFERROR(IF(E52=F52,0,IF(F52>E52,ABS((F52/E52)-1),IF(AND(F52<E52,E52<0),-((F52/E52)-1),(F52/E52)-1))),0) -> 28.9%
B54: Muud tulud | H54: =IFERROR(F54/SUBTOTAL(109,Müügitulud[[praegune periood ]]),0) -> 0 | I54: =IFERROR(F54/D54-1,0) -> 0 | J54: =IFERROR(F54/E54-1,0) -> 0
B56: Maksud
B58: Tulumaks | E58: 32 | F58: 30 | H58: =IFERROR(Maksud[[#This Row],[praegune periood ]]/SUBTOTAL(109,Müügitulud[[praegune periood ]]),0) -> 66.7% | I58: =IFERROR(Maksud[[#This Row],[praegune periood ]]/Maksud[[#This Row],[eelmine periood]]-1,0) -> 0 | J58: =IFERROR(Maksud[[#This Row],[praegune periood ]]/Maksud[[#This Row],[Eelarve]]-1,0) -> -6.3%
B59: Palgafondi maksud | H59: =IFERROR(Maksud[[#This Row],[praegune periood ]]/SUBTOTAL(109,Müügitulud[[praegune periood ]]),0) -> 0 | I59: =IFERROR(Maksud[[#This Row],[praegune periood ]]/Maksud[[#This Row],[eelmine periood]]-1,0) -> 0 | J59: =IFERROR(Maksud[[#This Row],[praegune periood ]]/Maksud[[#This Row],[Eelarve]]-1,0) -> 0
B60: Kinnisvaramaksud | H60: =IFERROR(Maksud[[#This Row],[praegune periood ]]/SUBTOTAL(109,Müügitulud[[praegune periood ]]),0) -> 0 | I60: =IFERROR(Maksud[[#This Row],[praegune periood ]]/Maksud[[#This Row],[eelmine periood]]-1,0) -> 0 | J60: =IFERROR(Maksud[[#This Row],[praegune periood ]]/Maksud[[#This Row],[Eelarve]]-1,0) -> 0
B61: Muud maksud (täpsustada) | H61: =IFERROR(Maksud[[#This Row],[praegune periood ]]/SUBTOTAL(109,Müügitulud[[praegune periood ]]),0) -> 0 | I61: =IFERROR(Maksud[[#This Row],[praegune periood ]]/Maksud[[#This Row],[eelmine periood]]-1,0) -> 0 | J61: =IFERROR(Maksud[[#This Row],[praegune periood ]]/Maksud[[#This Row],[Eelarve]]-1,0) -> 0
B62: Kokku | D62: =SUBTOTAL(109,Maksud[eelmine periood]) -> 0 | E62: =SUBTOTAL(109,Maksud[Eelarve]) -> 32 | F62: =SUBTOTAL(109,Maksud[[praegune periood ]]) -> 30 | H62: =IFERROR(Maksud[[#Totals],[praegune periood ]]/SUBTOTAL(109,Müügitulud[[praegune periood ]]),0) -> 66.7% | I62: =IFERROR(Maksud[[#Totals],[praegune periood ]]/Maksud[[#Totals],[eelmine periood]]-1,0) -> 0 | J62: =IFERROR(Maksud[[#Totals],[praegune periood ]]/Maksud[[#Totals],[Eelarve]]-1,0) -> -6.3%
B64: Netokasum | D64: =D52+D54-Maksud[[#Totals],[eelmine periood]] -> 40 | E64: =E52+E54-Maksud[[#Totals],[eelmine periood]] -> -45 | F64: =F52+F54-Maksud[[#Totals],[eelmine periood]] -> -32 | H64: =IFERROR(F64/SUBTOTAL(109,Müügitulud[[praegune periood ]]),0) -> -71.1% | I64: =IFERROR(IF(D64=F64,0,IF(F64>D64,ABS((F64/D64)-1),IF(AND(F64<D64,D64<0),-((F64/D64)-1),(F64/D64)-1))),0) -> -180.0% | J64: =IFERROR(IF(E64=F64,0,IF(F64>E64,ABS((F64/E64)-1),IF(AND(F64<E64,E64<0),-((F64/E64)-1),(F64/E64)-1))),0) -> 28.9%
B65: Brutorentaablus | D65: =D20/SUM(Müügitulud[eelmine periood]) -> 100.0% | E65: =E20/SUM(Müügitulud[Eelarve]) -> 86.0% | F65: =F20/SUM(Müügitulud[[praegune periood ]]) -> 84.4%
B66: Müügitulu | D66: =D64/SUM(Müügitulud[eelmine periood]) -> 100.0% | E66: =E64/SUM(Müügitulud[Eelarve]) -> -90.0% | F66: =F64/SUM(Müügitulud[[praegune periood ]]) -> -71.1%
